bitfinex/quotes_BTCUSD_20230115
["timestamp","ask_amount","ask_price","bid_price","bid_amount"]
[1673816444296,0.54245904,20905.0,20902.0,0.001]
[1673816444555,0.54245904,20905.0,20901.0,0.61249672]
[1673816444805,0.54645904,20905.0,20901.0,0.61449672]
[1673816445052,0.54245904,20905.0,20901.0,0.61249672]
[1673816445292,0.62045904,20905.0,20902.0,0.001]
[1673816445792,0.54245904,20905.0,20901.0,0.61249672]
[1673816446332,1.10481304,20905.0,20901.0,0.61349672]
[1673816446642,1.02081304,20905.0,20902.0,0.57302316]
[1673816447887,1.02481304,20905.0,20902.0,0.57302316]
[1673816448102,1.02081304,20905.0,20902.0,0.57302316]
[1673816448637,1.09881304,20905.0,20902.0,0.57402316]
[1673816449721,0.62045904,20905.0,20903.0,0.51325536]
[1673816451264,0.54245904,20905.0,20903.0,0.51325536]
[1673816451510,0.54245904,20905.0,20903.0,0.51425536]
[1673816451511,0.62645904,20905.0,20903.0,0.51425536]
[1673816455829,0.62645904,20905.0,20903.0,0.001]
[1673816456078,0.62075876,20904.0,20903.0,0.001]
[1673816457113,0.62075876,20904.0,20902.0,0.75217733]
[1673816457633,0.69875876,20904.0,20903.0,0.001]
[1673816458153,0.62075876,20904.0,20902.0,0.75217733]
[1673816459176,0.69875876,20904.0,20903.0,0.001]
[1673816459462,0.078,20904.0,20903.0,0.001]
[1673816459693,0.22053392,20904.0,20903.0,0.001]
[1673816459948,0.93027356,20905.0,20902.0,0.75217733]
[1673816460201,0.004,20904.0,20902.0,0.75417733]
[1673816460458,0.93027356,20905.0,20902.0,0.75217733]
[1673816460715,0.80265295,20904.0,20902.0,0.75217733]
[1673816461271,1.01645706,20904.0,20902.0,0.75217733]
[1673816461766,0.14253392,20903.0,20902.0,0.1143]
[1673816462034,0.14253392,20903.0,20902.0,0.1153]
[1673816462754,1.01645706,20904.0,20902.0,0.1153]
[1673816463016,0.14253392,20903.0,20902.0,0.1163]
[1673816463268,0.14253392,20903.0,20902.0,0.1143]
[1673816463522,0.14653392,20903.0,20902.0,0.1163]
[1673816463776,0.70953727,20903.0,20902.0,0.002]
[1673816465223,0.92334138,20903.0,20902.0,0.002]
[1673816465485,1.06593172,20903.0,20902.0,0.002]
[1673816465744,1.63013963,20903.0,20902.0,0.00193217]
[1673816465961,1.63013963,20903.0,20900.0,0.00745388]
[1673816465962,0.00360777,20901.0,20900.0,0.00745388]
[1673816466260,0.14667035,20901.0,20900.0,0.00745388]
[1673816467294,0.37026422,20901.0,20900.0,0.01245388]
[1673816467552,0.15567035,20901.0,20900.0,0.01245388]
[1673816467809,0.14667035,20901.0,20900.0,0.00745388]
[1673816468323,0.15267035,20901.0,20900.0,0.00945388]
[1673816468585,0.36726422,20901.0,20900.0,0.00945388]
[1673816468836,0.98471916,20901.0,20900.0,0.00945388]
[1673816469340,1.12778174,20901.0,20900.0,0.00945388]
[1673816470873,0.98486859,20901.0,20900.0,0.00945388]
[1673816471405,1.12778174,20901.0,20900.0,0.00945388]
[1673816471650,0.36752895,20901.0,20900.0,0.5356599]
[1673816472198,0.15293508,20901.0,20900.0,0.5356599]
[1673816472757,0.36752895,20901.0,20900.0,0.5356599]
[1673816473025,0.15293508,20901.0,20900.0,0.5356599]
[1673816474121,0.40750761,20899.0,20898.0,0.66327844]
[1673816474388,0.40750761,20899.0,20898.0,0.77647844]
[1673816475437,0.41650761,20899.0,20898.0,0.77947844]
[1673816475686,0.41650761,20899.0,20898.0,0.77447844]
[1673816476454,0.41650761,20899.0,20898.0,1.09549544]
[1673816476729,0.41650761,20899.0,20898.0,0.87299544]
[1673816476969,0.41650761,20899.0,20898.0,0.55197844]
[1673816478252,0.41650761,20899.0,20898.0,0.55191184]
[1673816479894,0.41650761,20899.0,20898.0,0.54891184]
[1673816480076,0.41650761,20899.0,20898.0,0.55191184]
[1673816480331,0.41650761,20899.0,20898.0,0.54891184]
[1673816480574,0.42550761,20899.0,20898.0,0.55191184]
[1673816481064,0.42550761,20899.0,20898.0,0.01038728]
[1673816483957,0.42550761,20899.0,20898.0,0.12468728]
[1673816484534,0.42550761,20899.0,20898.0,0.98303268]
[1673816484780,0.42550761,20899.0,20898.0,1.89636368]
[1673816485357,0.42550761,20899.0,20898.0,2.55334463]
[1673816485610,0.42550761,20899.0,20898.0,2.55332359]
[1673816485874,0.42550761,20899.0,20898.0,1.59636368]
[1673816486136,0.42550761,20899.0,20898.0,1.11784968]
[1673816486443,0.42550761,20899.0,20898.0,0.97340428]
[1673816486701,0.42550761,20899.0,20898.0,2.55134719]
[1673816486976,0.42550761,20899.0,20898.0,3.30955075]
[1673816487244,0.42550761,20899.0,20898.0,3.594515]
[1673816487790,0.42550761,20899.0,20898.0,3.30955075]
[1673816488289,0.42550761,20899.0,20898.0,3.594515]
[1673816491317,0.42550761,20899.0,20898.0,3.45221424]
[1673816493880,0.42550761,20899.0,20898.0,2.76641424]
[1673816494135,0.42550761,20899.0,20898.0,2.65261424]
[1673816494390,0.42550761,20899.0,20898.0,2.794915]
[1673816494642,0.42550761,20899.0,20898.0,2.50995075]
[1673816494896,0.42550761,20899.0,20898.0,3.92126228]
[1673816495151,0.42550761,20899.0,20898.0,4.44620114]
[1673816495406,0.42550761,20899.0,20898.0,4.01843769]
[1673816495661,0.42550761,20899.0,20898.0,5.88134451]
[1673816496176,0.40750761,20899.0,20898.0,5.87834451]
[1673816496431,0.40950761,20899.0,20898.0,5.94634451]
[1673816496712,0.40750761,20899.0,20898.0,3.96352849]
[1673816496987,0.40950761,20899.0,20898.0,4.03152849]
[1673816497512,0.40950761,20899.0,20898.0,4.51117805]
[1673816497763,0.40950761,20899.0,20898.0,4.03152849]
[1673816499810,0.40950761,20899.0,20898.0,4.76774734]
[1673816500057,0.40950761,20899.0,20898.0,4.76774616]
[1673816500327,0.40950761,20899.0,20898.0,4.76774704]
[1673816500638,0.40950761,20899.0,20898.0,4.71722849]
[1673816501059,0.40950761,20899.0,20898.0,4.9267964]
[1673816501574,0.40950761,20899.0,20898.0,4.71722849]
[1673816502539,0.40941613,20899.0,20898.0,4.71722849]
[1673816502787,0.40941613,20899.0,20898.0,4.0033042]
[1673816503041,0.40941613,20899.0,20898.0,3.64737072]
[1673816503310,0.40941613,20899.0,20898.0,4.00326126]
[1673816503830,0.40941613,20899.0,20898.0,3.64737072]
[1673816504084,0.40941613,20899.0,20898.0,4.00328406]
[1673816504566,0.40941613,20899.0,20898.0,4.38784386]
[1673816505077,0.40941613,20899.0,20898.0,3.70114386]
[1673816506102,0.40941613,20899.0,20898.0,3.34523052]
[1673816506625,0.40941613,20899.0,20898.0,3.31646894]
[1673816507100,0.40941613,20899.0,20898.0,3.70092287]
[1673816507350,0.40941613,20899.0,20898.0,3.31646894]
[1673816508175,0.40941613,20899.0,20898.0,3.70088552]
[1673816508920,0.40941613,20899.0,20898.0,3.3450873]
[1673816510507,0.40941613,20899.0,20898.0,2.96067072]
[1673816511068,0.40941613,20899.0,20898.0,3.3164789]
[1673816511321,0.40941613,20899.0,20898.0,2.96067072]
[1673816512646,0.40941613,20899.0,20898.0,3.34508732]
[1673816512913,0.40941613,20899.0,20898.0,2.96067072]
[1673816513169,0.40941613,20899.0,20898.0,2.93567072]
[1673816513935,0.40941613,20899.0,20898.0,3.3201579]
[1673816514446,0.40941613,20899.0,20898.0,3.32022857]
[1673816515222,0.40941613,20899.0,20898.0,2.93567072]
[1673816516045,0.40941613,20899.0,20898.0,3.32022963]
[1673816517493,0.40941613,20899.0,20898.0,3.7985661]
[1673816517739,0.16038513,20899.0,20898.0,3.7985661]
[1673816522039,0.16038513,20899.0,20898.0,3.41400719]
[1673816522543,0.16038513,20899.0,20898.0,3.66859525]
[1673816522792,0.16038513,20899.0,20898.0,3.55548185]
[1673816523059,0.16038513,20899.0,20898.0,3.70212729]
[1673816523293,0.16038513,20899.0,20898.0,3.48836708]
[1673816523599,0.16038513,20899.0,20898.0,3.34595009]
[1673816523807,0.16038513,20899.0,20898.0,3.13215373]
[1673816524064,0.16038513,20899.0,20898.0,3.06108515]
[1673816524347,0.16038513,20899.0,20898.0,3.20370652]
[1673816524623,0.16038513,20899.0,20898.0,2.36145709]
[1673816524928,0.16038513,20899.0,20898.0,1.50346475]
[1673816525183,0.9268875,20899.0,20898.0,0.786514]
[1673816525986,0.9268875,20899.0,20898.0,0.718514]
[1673816525987,0.9248875,20899.0,20898.0,0.718514]
[1673816526299,0.9268875,20899.0,20898.0,0.781514]
[1673816526574,0.9288875,20899.0,20898.0,0.844514]
[1673816527100,0.9288875,20899.0,20898.0,0.366]
[1673816531673,0.9288875,20899.0,20898.0,0.3658974]
[1673816533529,0.96173661,20899.0,20898.0,1e-08]
[1673816533791,1.60921953,20899.0,20895.0,0.48493682]
[1673816534055,0.2281,20896.0,20895.0,0.00636882]
[1673816534849,0.1138,20896.0,20895.0,0.5012843]
[1673816535114,0.1138,20896.0,20895.0,0.32755482]
[1673816535376,0.1328,20896.0,20895.0,0.80113782]
[1673816535624,0.1328,20896.0,20895.0,1.10113782]
[1673816535900,0.019,20896.0,20895.0,1.29186377]
[1673816536174,0.019,20896.0,20895.0,1.72801737]
[1673816538411,0.019,20896.0,20895.0,1.61371737]
[1673816540533,0.019,20896.0,20895.0,1.31371737]
[1673816543446,0.019,20896.0,20895.0,0.99253137]
[1673816544016,0.019,20896.0,20895.0,1.31371737]
[1673816544787,0.019,20896.0,20895.0,1.28871737]
[1673816545072,0.019,20896.0,20895.0,1.58871737]
[1673816545323,0.019,20896.0,20895.0,1.82871737]
[1673816546365,0.019,20896.0,20895.0,1.52871737]
[1673816547176,0.019,20896.0,20895.0,0.75257955]
[1673816547479,0.019,20896.0,20895.0,0.24]
[1673816547480,0.51501551,20896.0,20895.0,0.24]
[1673816548567,0.85681551,20896.0,20895.0,0.24]
[1673816548827,0.87940351,20896.0,20895.0,0.24]
[1673816549090,0.85681551,20896.0,20895.0,0.24]
[1673816549613,0.74251551,20896.0,20895.0,0.24]
[1673816552447,0.2465,20896.0,20895.0,0.24]
[1673816553715,0.74425106,20896.0,20895.0,0.24]
[1673816558215,0.76683906,20896.0,20895.0,0.24]
[1673816558436,0.74425106,20896.0,20895.0,0.24]
[1673816558669,0.76683906,20896.0,20895.0,0.24]
[1673816558896,0.74425106,20896.0,20895.0,0.24]
[1673816559106,0.76683906,20896.0,20895.0,0.24]
[1673816559324,0.74425106,20896.0,20895.0,0.24]
[1673816559559,0.76683906,20896.0,20895.0,0.24]
[1673816559995,0.91017908,20896.0,20895.0,0.24]
[1673816561120,0.76683906,20896.0,20895.0,0.24]
[1673816562051,0.74425106,20896.0,20895.0,0.24]
[1673816562279,0.76683906,20896.0,20895.0,0.24]
[1673816562962,0.91017908,20896.0,20895.0,0.24]
[1673816563439,1.12518901,20896.0,20892.0,0.56175291]
[1673816563657,0.1143,20894.0,20892.0,0.66937695]
[1673816563847,0.6517805,20895.0,20892.0,0.478651]
[1673816564092,0.6517805,20895.0,20893.0,0.321186]
[1673816564320,0.6517805,20895.0,20894.0,0.19263]
[1673816564757,0.6517805,20895.0,20894.0,0.321186]
[1673816565175,0.6657805,20895.0,20894.0,0.321186]
[1673816565318,0.6517805,20895.0,20894.0,0.192612]
[1673816565540,0.6657805,20895.0,20894.0,0.192612]
[1673816565807,0.6657805,20895.0,20893.0,1.06590501]
[1673816566061,0.6657805,20895.0,20894.0,0.321186]
[1673816566563,0.6657805,20895.0,20893.0,1.06590501]
[1673816566800,0.6657805,20895.0,20894.0,0.321186]
[1673816567296,0.6517805,20895.0,20894.0,0.321186]
[1673816567516,0.6657805,20895.0,20893.0,1.06590501]
[1673816567726,0.6517805,20895.0,20893.0,1.06590501]
[1673816567971,0.6517805,20895.0,20894.0,0.321186]
[1673816568668,0.6657805,20895.0,20893.0,1.06590501]
[1673816568885,0.6517805,20895.0,20894.0,0.321186]
[1673816569107,0.6657805,20895.0,20894.0,0.321186]
[1673816569574,0.014,20895.0,20894.0,0.321186]
[1673816570241,0.63882916,20896.0,20893.0,1.30590501]
[1673816570475,0.78216918,20896.0,20893.0,0.718628]
[1673816570999,0.014,20895.0,20894.0,0.321186]
[1673816571196,0.78216918,20896.0,20893.0,0.24]
[1673816571431,0.79616918,20896.0,20893.0,0.24]
[1673816571647,0.54759739,20895.0,20894.0,0.321186]
[1673816572325,0.54759739,20895.0,20893.0,0.24]
[1673816572577,0.54759739,20895.0,20894.0,0.321186]
[1673816573270,0.56159739,20895.0,20893.0,0.24]
[1673816573529,0.56159739,20895.0,20894.0,0.321186]
[1673816573993,0.54759739,20895.0,20893.0,0.24]
[1673816574659,0.56159739,20895.0,20893.0,0.24]
[1673816575393,0.14334002,20894.0,20893.0,0.24]
[1673816575622,0.60903795,20894.0,20893.0,0.24]
[1673816576397,1.23042909,20894.0,20893.0,0.24]
[1673816576601,1.27238737,20894.0,20893.0,0.24]
[1673816576829,1.23038737,20894.0,20893.0,0.24]
[1673816577329,1.34538737,20894.0,20893.0,0.24]
[1673816577566,1.34538737,20894.0,20893.0,0.225]
[1673816578513,1.20255372,20894.0,20893.0,0.225]
[1673816578744,1.82551675,20894.0,20893.0,0.225]
[1673816578942,1.05926221,20894.0,20893.0,0.225]
[1673816579166,1.34538737,20894.0,20893.0,0.225]
[1673816580299,2.00572224,20894.0,20893.0,0.225]
[1673816580521,2.00572224,20894.0,20887.0,0.00359067]
[1673816580522,0.58633362,20892.0,20887.0,0.00359067]
[1673816580753,0.2283,20888.0,20887.0,0.00359067]
[1673816580984,0.250888,20888.0,20887.0,0.00359067]
[1673816581228,0.2283,20888.0,20887.0,0.00359067]
[1673816582408,0.71749507,20888.0,20887.0,0.00359067]
[1673816582636,0.74008307,20888.0,20887.0,0.00359067]
[1673816583126,0.89840205,20888.0,20887.0,0.00359067]
[1673816583367,0.7829216,20888.0,20887.0,0.00359067]
[1673816583597,0.7829216,20888.0,20885.0,0.01275473]
[1673816583598,0.1,20887.0,20885.0,0.01275473]
[1673816583869,0.2272,20886.0,20885.0,0.01275473]
[1673816584112,0.136088,20886.0,20885.0,0.01275473]
[1673816584572,0.1135,20886.0,20885.0,0.01275473]
[1673816584802,0.136088,20886.0,20885.0,0.01275473]
[1673816585044,0.27196949,20888.0,20885.0,0.52210108]
[1673816585271,0.6456341,20888.0,20885.0,1.19163303]
[1673816585521,0.6456341,20888.0,20885.0,1.00090708]
[1673816585983,0.115,20886.0,20885.0,1.19163303]
[1673816586227,0.115,20886.0,20885.0,1.11520708]
[1673816586465,0.115,20886.0,20885.0,1.43639308]
[1673816586708,0.115,20886.0,20885.0,1.73639308]
[1673816587424,0.00099964,20890.0,20885.0,1.76185261]
[1673816587647,0.00099964,20890.0,20886.0,0.19072595]
[1673816587880,0.00099964,20890.0,20887.0,1.757476]
[1673816587881,0.55922261,20889.0,20887.0,1.757476]
[1673816588129,0.55922261,20889.0,20888.0,0.192793]
[1673816588367,0.55922261,20889.0,20888.0,0.478743]
[1673816589106,0.014,20890.0,20888.0,0.478743]
[1673816589336,0.1143,20890.0,20888.0,0.478743]
[1673816589572,0.51173881,20889.0,20888.0,0.478743]
[1673816589801,0.62673881,20889.0,20888.0,0.478743]
[1673816590126,0.51173881,20889.0,20888.0,0.478743]
[1673816590353,0.18740388,20889.0,20885.0,0.49155073]
[1673816590584,0.022588,20888.0,20885.0,0.96161651]
[1673816590823,0.15113223,20888.0,20885.0,0.96161651]
[1673816591063,1.27326481,20889.0,20888.0,0.0122]
[1673816591064,0.142,20889.0,20888.0,0.0122]
[1673816591301,0.3703,20889.0,20888.0,0.0122]
[1673816591533,0.392888,20889.0,20888.0,0.0122]
[1673816591780,0.279288,20889.0,20888.0,0.0122]
[1673816592021,0.237288,20889.0,20888.0,0.0122]
[1673816592261,1.58881302,20889.0,20888.0,0.0122]
[1673816592498,1.23827779,20889.0,20888.0,0.0122]
[1673816592724,1.37227779,20889.0,20888.0,0.0122]
[1673816592964,1.66634061,20889.0,20888.0,0.0122]
[1673816593357,1.43586139,20889.0,20888.0,0.0122]
[1673816593607,0.56185183,20888.0,20885.0,0.01275473]
[1673816593910,0.56185183,20888.0,20885.0,0.20348068]
[1673816594164,0.136,20889.0,20886.0,1.45805185]
[1673816594408,0.136,20889.0,20887.0,0.321186]
[1673816594666,0.136,20889.0,20888.0,0.671537]
[1673816594921,0.47615448,20890.0,20889.0,0.321154]
[1673816595171,0.58633362,20892.0,20888.0,0.478743]
[1673816595421,1.08045833,20892.0,20889.0,0.46964818]
[1673816595666,0.62711091,20891.0,20889.0,0.66037413]
[1673816595907,0.62711091,20891.0,20889.0,0.46964818]
[1673816596166,0.007,20890.0,20889.0,0.46964818]
[1673816596421,0.62711091,20891.0,20888.0,0.957484]
[1673816596683,0.62711091,20891.0,20889.0,0.01232054]
[1673816596930,0.62711091,20891.0,20889.0,0.49103254]
[1673816597183,0.63411091,20891.0,20889.0,0.478712]
[1673816597439,0.63411091,20891.0,20886.0,0.1143]
[1673816597440,0.52015701,20889.0,20887.0,0.88985503]
[1673816598215,0.1217,20891.0,20887.0,0.88985503]
[1673816598456,0.76136822,20891.0,20888.0,0.56492226]
[1673816598710,0.014,20891.0,20889.0,0.19072595]
[1673816598987,0.58730821,20892.0,20890.0,1.27858]
[1673816599226,1.21196969,20892.0,20891.0,0.192713]
[1673816599494,1.2109951,20892.0,20890.0,0.957394]
[1673816599752,0.58633362,20892.0,20891.0,0.914561]
[1673816600006,0.58633362,20892.0,20891.0,1.214561]
[1673816600266,0.58633362,20892.0,20891.0,2.05525412]
[1673816600505,0.63533362,20892.0,20891.0,1.51893168]
[1673816600998,0.63533362,20892.0,20889.0,0.478706]
[1673816601246,1.2617462,20892.0,20889.0,0.94673287]
[1673816601492,1.2127462,20892.0,20890.0,0.44861626]
[1673816602288,1.2127462,20892.0,20891.0,0.321186]
[1673816602554,1.2127462,20892.0,20890.0,0.92731226]
[1673816602875,0.63533362,20892.0,20890.0,0.92731226]
[1673816603086,0.63533362,20892.0,20891.0,0.81131686]
[1673816603591,0.63533362,20892.0,20891.0,1.28999186]
[1673816604088,0.63533362,20892.0,20891.0,1.78071781]
[1673816604339,0.58633362,20892.0,20891.0,1.099861]
[1673816604629,0.70833362,20892.0,20891.0,1.099861]
[1673816605402,0.58633362,20892.0,20891.0,1.70007975]
[1673816605636,0.59933362,20892.0,20891.0,1.63640219]
[1673816605889,0.59933362,20892.0,20891.0,1.40007975]
[1673816606376,0.58633362,20892.0,20891.0,1.40007975]
[1673816607401,0.59933362,20892.0,20891.0,1.40007975]
[1673816607650,0.58633362,20892.0,20891.0,1.40007975]
[1673816607891,0.59933362,20892.0,20891.0,1.40007975]
[1673816609246,0.58633362,20892.0,20891.0,1.40007975]
[1673816609432,0.59933362,20892.0,20891.0,1.40007975]
[1673816611473,0.59933362,20892.0,20891.0,1.213961]
[1673816611972,0.59933362,20892.0,20891.0,1.313961]
[1673816612223,0.58633362,20892.0,20891.0,1.78055931]
[1673816612469,0.59933362,20892.0,20891.0,1.78055931]
[1673816612719,0.59933362,20892.0,20891.0,1.213961]
[1673816613028,0.59933362,20892.0,20891.0,1.84703318]
[1673816613778,0.59925352,20892.0,20891.0,1.84703318]
[1673816614029,0.59925352,20892.0,20891.0,1.43293318]
[1673816614310,0.59925352,20892.0,20891.0,0.799861]
[1673816614554,0.58625352,20892.0,20891.0,0.799861]
[1673816615052,0.59925352,20892.0,20891.0,0.799861]
[1673816617702,0.59925352,20892.0,20891.0,0.478675]
[1673816617957,0.59925352,20892.0,20891.0,0.799861]
[1673816618204,0.58625352,20892.0,20891.0,0.799861]
[1673816618455,0.59225352,20892.0,20891.0,0.799861]
[1673816619461,0.59225352,20892.0,20891.0,0.478675]
[1673816619707,0.59225352,20892.0,20891.0,0.799861]
[1673816620971,0.59225352,20892.0,20891.0,0.478675]
[1673816621213,0.59225352,20892.0,20891.0,0.799861]
[1673816621964,0.59225352,20892.0,20891.0,0.478675]
[1673816625310,0.59225352,20892.0,20890.0,0.95631359]
[1673816625819,0.59225352,20892.0,20891.0,0.32108246]
[1673816626070,0.59225352,20892.0,20891.0,0.79975746]
[1673816626326,0.59225352,20892.0,20891.0,0.478675]
[1673816626536,0.59225352,20892.0,20891.0,0.799899]
[1673816627039,0.58625352,20892.0,20891.0,0.799899]
[1673816627288,0.59925352,20892.0,20891.0,0.799899]
[1673816627550,0.58625352,20892.0,20891.0,0.799899]
[1673816627800,0.59225352,20892.0,20891.0,0.799899]
[1673816629064,0.59225352,20892.0,20891.0,0.478675]
[1673816629600,0.59225352,20892.0,20891.0,0.88216451]
[1673816629830,0.59225352,20892.0,20891.0,1.20338851]
[1673816630846,0.59225352,20892.0,20891.0,1.50338851]
[1673816631351,0.59225352,20892.0,20891.0,1.214599]
[1673816631594,0.59225352,20892.0,20891.0,1.86212571]
[1673816631848,0.59225352,20892.0,20891.0,1.76212571]
[1673816632644,0.59225352,20892.0,20891.0,2.71937188]
[1673816632895,0.59225352,20892.0,20891.0,1.76212571]
[1673816633382,0.59225352,20892.0,20891.0,1.46212571]
[1673816633884,0.59225352,20892.0,20891.0,1.34742571]
[1673816636562,0.59225352,20892.0,20891.0,2.70609575]
[1673816636815,0.59225352,20892.0,20891.0,2.84338273]
[1673816637058,0.59225352,20892.0,20891.0,3.40520964]
[1673816637559,0.59225352,20892.0,20891.0,3.04899629]
[1673816637811,0.59225352,20892.0,20891.0,2.48716938]
[1673816638072,0.59225352,20892.0,20891.0,2.84338273]
[1673816638292,0.59225352,20892.0,20891.0,3.39440859]
[1673816638552,0.59225352,20892.0,20891.0,2.84338273]
[1673816638810,0.59225352,20892.0,20891.0,2.96303292]
[1673816639063,0.59225352,20892.0,20891.0,3.17758034]
[1673816639343,0.59225352,20892.0,20891.0,3.0348311]
[1673816640395,0.59225352,20892.0,20891.0,2.99965852]
[1673816641621,0.59225352,20892.0,20891.0,2.4851111]
[1673816641862,0.59225352,20892.0,20891.0,2.7851111]
[1673816642284,0.59225352,20892.0,20891.0,2.99965852]
[1673816642539,0.59225352,20892.0,20891.0,3.0348687]
[1673816642802,0.59225352,20892.0,20891.0,2.99965852]
[1673816644148,0.59225352,20892.0,20891.0,2.69965852]
[1673816646408,0.59225352,20892.0,20891.0,2.99965852]
[1673816646671,0.59225352,20892.0,20891.0,2.69965852]
[1673816647188,0.59225352,20892.0,20891.0,2.4851111]
[1673816650393,0.59225352,20892.0,20891.0,3.03486991]
[1673816650879,0.59225352,20892.0,20891.0,3.03487417]
[1673816651397,0.59225352,20892.0,20891.0,3.17761915]
[1673816651883,0.59225352,20892.0,20891.0,2.96307173]
[1673816652133,0.59225352,20892.0,20891.0,2.67232326]
[1673816652640,0.59225352,20892.0,20891.0,3.14536134]
[1673816652902,0.59225352,20892.0,20891.0,3.27244143]
[1673816653435,0.59225352,20892.0,20891.0,2.87095345]
[1673816653941,0.59225352,20892.0,20891.0,2.31610991]
[1673816653942,0.58625352,20892.0,20891.0,2.31610991]
[1673816654194,0.58625352,20892.0,20891.0,2.31810991]
[1673816654195,0.59525352,20892.0,20891.0,2.31810991]
[1673816654448,0.58625352,20892.0,20891.0,2.31610991]
[1673816654956,0.58625352,20892.0,20891.0,3.14536134]
[1673816655206,0.58625352,20892.0,20891.0,3.795334]
[1673816655711,0.59525352,20892.0,20891.0,3.36957055]
[1673816655961,0.59525352,20892.0,20891.0,2.84109068]
[1673816656216,0.59525352,20892.0,20891.0,2.72699068]
[1673816656467,0.58625352,20892.0,20891.0,2.72499068]
[1673816656724,0.59525352,20892.0,20891.0,2.6877116]
[1673816657482,0.59519081,20892.0,20891.0,2.6877116]
[1673816658817,0.59519081,20892.0,20891.0,2.72499068]
[1673816661630,0.59519081,20892.0,20891.0,3.08200079]
[1673816663958,0.59519081,20892.0,20891.0,2.72499068]
[1673816665953,0.009,20892.0,20891.0,2.72499068]
[1673816666206,0.009,20892.0,20891.0,3.0819995]
[1673816668875,0.009,20892.0,20891.0,3.08336311]
[1673816669140,0.009,20892.0,20891.0,2.72635429]
[1673816671384,0.00099591,20895.0,20892.0,0.1147]
[1673816671630,0.00099591,20895.0,20894.0,0.35704795]
[1673816671884,0.00809905,20897.0,20894.0,0.97061316]
[1673816672136,0.00809905,20897.0,20895.0,0.63530542]
[1673816672389,0.00809905,20897.0,20896.0,1.756819]
[1673816672642,0.00809905,20897.0,20896.0,2.056819]
[1673816672906,0.00809905,20897.0,20896.0,2.67000207]
[1673816673144,0.01709905,20897.0,20896.0,2.67000207]
[1673816673624,0.02609905,20897.0,20896.0,2.67300207]
[1673816674873,0.02609905,20897.0,20896.0,2.37300207]
[1673816675611,0.02609905,20897.0,20896.0,2.67300207]
[1673816677139,0.02609905,20897.0,20896.0,0.96012]
[1673816677671,0.68573917,20897.0,20896.0,0.96012]
[1673816677925,0.00809905,20897.0,20896.0,0.95712]
[1673816678175,0.01709905,20897.0,20896.0,0.96012]
[1673816679997,0.01709905,20897.0,20896.0,1.281344]
[1673816680511,0.01709905,20897.0,20896.0,0.96012]
[1673816683248,0.13169905,20897.0,20896.0,0.96012]
[1673816684790,0.12269905,20897.0,20896.0,0.95712]
[1673816685048,0.13269905,20897.0,20896.0,0.96012]
[1673816686541,0.61984121,20897.0,20896.0,0.96012]
[1673816687566,0.13269905,20897.0,20896.0,0.96012]
[1673816691020,0.13269905,20897.0,20896.0,2.30628488]
[1673816691270,0.13269905,20897.0,20896.0,2.7703083]
[1673816691271,0.01809905,20897.0,20896.0,2.7703083]
[1673816691528,0.01809905,20897.0,20896.0,3.0703083]
[1673816691780,0.01809905,20897.0,20896.0,2.7703083]
[1673816692290,0.01801298,20897.0,20896.0,2.7703083]
[1673816694050,0.21801298,20897.0,20896.0,2.7703083]
[1673816697067,0.21801298,20897.0,20896.0,2.5703083]
[1673816697617,0.21801298,20897.0,20896.0,2.8703083]
[1673816698107,0.21801298,20897.0,20896.0,3.08453707]
[1673816698588,0.42653108,20900.0,20897.0,0.1]
[1673816698843,0.1136,20899.0,20898.0,0.19239]
[1673816699101,0.1136,20899.0,20897.0,1.11608064]
[1673816699102,0.25648556,20899.0,20897.0,1.11608064]
[1673816699358,0.14343827,20898.0,20897.0,1.11608064]
[1673816699641,0.14343827,20898.0,20897.0,0.63755864]
[1673816701093,0.14743827,20898.0,20897.0,0.64955864]
[1673816701569,0.94516741,20898.0,20897.0,0.012]
[1673816701818,1.32580733,20898.0,20897.0,0.012]
[1673816702072,1.30312133,20898.0,20897.0,0.012]
[1673816702325,1.32580733,20898.0,20897.0,0.012]
[1673816702854,2.27540037,20898.0,20894.0,0.478597]
[1673816703121,0.1142,20895.0,20894.0,1.12933591]
[1673816703650,0.1142,20895.0,20894.0,0.478597]
[1673816703919,0.1142,20895.0,20893.0,1.11533368]
[1673816704251,0.7827071,20896.0,20894.0,0.001]
[1673816704416,0.1146,20894.0,20893.0,1.11533368]
[1673816704659,0.009,20895.0,20894.0,0.001]
[1673816704932,0.1146,20895.0,20893.0,1.11533368]
[1673816705169,0.1146,20894.0,20893.0,1.11633368]
[1673816705411,0.1146,20894.0,20893.0,2.15678859]
[1673816705664,0.1146,20894.0,20893.0,2.33521317]
[1673816706418,0.1146,20894.0,20893.0,2.01398917]
[1673816706680,0.1146,20894.0,20893.0,2.01399255]
[1673816706924,0.1146,20894.0,20893.0,1.05677769]
[1673816707177,0.1246,20894.0,20893.0,2.33621573]
[1673816707461,0.1246,20894.0,20893.0,2.47901515]
[1673816709462,0.1246,20894.0,20893.0,2.15779115]
[1673816709748,0.1246,20894.0,20893.0,1.05777769]
[1673816710724,0.1246,20894.0,20893.0,2.33620759]
[1673816710726,0.1246,20894.0,20893.0,1.90084632]
[1673816710986,0.1246,20894.0,20893.0,2.75639068]
[1673816711760,0.1246,20894.0,20893.0,2.61359126]
[1673816712275,0.1246,20894.0,20893.0,2.29236726]
[1673816712540,0.1246,20894.0,20893.0,2.75639068]
[1673816713036,0.1246,20894.0,20893.0,2.45639068]
[1673816713556,0.01,20894.0,20893.0,2.45639068]
[1673816714077,0.01,20894.0,20893.0,2.75639068]
[1673816715403,0.01,20894.0,20893.0,2.45639068]
[1673816715727,0.01,20894.0,20893.0,2.31359126]
[1673816716447,0.01,20894.0,20893.0,2.45639068]
[1673816717396,0.01,20894.0,20893.0,2.75639068]
[1673816717896,0.01,20894.0,20893.0,2.20084632]
[1673816718148,0.01,20894.0,20893.0,2.8253491]
[1673816718892,0.01,20894.0,20893.0,2.450232]
[1673816719414,0.01,20894.0,20893.0,2.85009012]
[1673816719920,0.01,20894.0,20893.0,2.88872353]
[1673816720176,0.01,20894.0,20893.0,2.60308517]
[1673816720942,0.01,20894.0,20893.0,2.24603722]
[1673816723543,0.01,20894.0,20893.0,2.20740381]
[1673816723803,0.01,20894.0,20893.0,2.60299159]
[1673816724081,0.01,20894.0,20893.0,2.24603722]
[1673816726109,0.01,20894.0,20893.0,2.6029669]
[1673816726617,0.01,20894.0,20893.0,2.24603722]
[1673816727663,0.01,20894.0,20893.0,2.60292567]
[1673816727945,0.01,20894.0,20893.0,2.56429226]
[1673816728704,0.00990657,20894.0,20893.0,3.22704062]